[Event "Turkish Second League 2019"]
[Site "Konya"]
[Date "2019.07.25"]
[Round "5"]
[White "Ekici, Emre"]
[Black "Ilhan, Huseyin"]
[Result "0-1"]
[ECO "A43"]
[WhiteElo "1697"]
[BlackElo "1778"]
[Annotator "NA"]
[PlyCount "68"]
[EventDate "2019.07.22"]
[EventType "team-tourn"]
[EventCountry "TUR"]
[SourceTitle "playchess.com"]
[Source "ChessBase"]
[SourceQuality "1"]
[TimeControl "5400+30"]

1. d4 {[%emt 0:00:30]} c5 {[%emt 0:00:30]} 2. Bf4 {[%emt 0:02:30]} cxd4 {[%emt 0:06:30]} 3. Nf3 {[%emt 0:01:30]} Nc6 {[%emt 0:00:30]} 4. Nxd4 {[%emt 0:02:30]} Nf6 {[%emt 0:02:30]} 5. Nc3 {[%emt 0:01:30]} Qb6 {[%emt 0:05:30]} 6. Nb3 {[%emt 0:03:30]} d6 {[%emt 0:04:30]} 7. e4 {[%emt 0:05:30]} Be6 {[%emt 0:05:30]} 8. Be3 {[%emt 0:02:30]} Qd8 {[%emt 0:01:30]} 9. Be2 {[%emt 0:01:30]} g6 {[%emt 0:04:30]} 10. O-O {[%emt 0:01:30]} a6 {[%emt 0:04:30]} 11. f4 {[%emt 0:02:30]} b5 {[%emt 0:04:30]} 12. Bf3 {[%emt 0:05:30]} Rc8 {[%emt 0:02:30]} 13. Nd4 {[%emt 0:06:30]} Nxd4 {[%emt 0:04:30]} 14. Bxd4 {[%emt 0:01:30]} Bg7 {[%emt 0:04:30]} 15. Nd5 {[%emt 0:06:30]} Bxd5 {[%emt 0:03:30]} 16. exd5 {[%emt 0:00:30]} O-O {[%emt 0:00:30]} 17. c3 {[%emt 0:02:30]} Qd7 {[%emt 0:07:30]} 18. a4 {[%emt 0:02:30]} Rb8 {[%emt 0:05:30]} 19. axb5 {[%emt 0:04:30]} axb5 {[%emt 0:01:30]} 20. Qb3 {[%emt 0:03:30]} Rb7 {[%emt 0:01:30]} 21. Ra5 {[%emt 0:02:30]} Rfb8 {[%emt 0:00:30]} 22. Rfa1 {[%emt 0:01:30]} Qf5 {[%emt 0:02:30]} 23. g3 {[%emt 0:03:30]} h5 {[%emt 0:06:30]} 24. Ba7 {[%emt 0:03:30]} Qd3 {[%emt 0:03:43]} 25. Kg2 {[%emt 0:02:30]} Ng4 {[%emt 0:03:55]} 26. Bxg4 {[%emt 0:01:30]} hxg4 {[%emt 0:00:08]} 27. Bxb8 {[%emt 0:02:30]} Qf3+ {[%emt 0:00:32]} 28. Kg1 {[%emt 0:00:00]} Bd4+ {[%emt 0:00:33]} 29. cxd4 {[%emt 0:02:00]} Qxb3 {[%emt 0:00:06]} 30. Ra8 {[%emt 0:01:30]} Kg7 {[%emt 0:00:37]} 31. R1a7 {[%emt 0:02:30]} Qe3+ {[%emt 0:01:22]} 32. Kg2 {[%emt 0:00:30]} Qxd4 {[%emt 0:00:22]} 33. Ra3 {[%emt 0:03:30]} Qxb2+ {[%emt 0:00:13]} 34. Kg1 {[%emt 0:00:30]} Rxb8 {[%emt 0:00:16]} 0-1

[Event "Turkish Second League 2019"]
[Site "Konya"]
[Date "2019.07.25"]
[Round "5"]
[White "Bozkurt, Serkan"]
[Black "Saritarla, Abdullah"]
[Result "1-0"]
[ECO "E02"]
[WhiteElo "1689"]
[BlackElo "1627"]
[Annotator "NA"]
[PlyCount "91"]
[EventDate "2019.07.22"]
[EventType "team-tourn"]
[EventCountry "TUR"]
[SourceTitle "playchess.com"]
[Source "ChessBase"]
[SourceQuality "1"]
[TimeControl "5400+30"]

1. Nf3 {[%emt 0:00:30]} Nf6 {[%emt 0:00:30]} 2. g3 {[%emt 0:00:00]} d5 {[%emt 0:00:30]} 3. Bg2 {[%emt 0:00:00]} e6 {[%emt 0:01:30]} 4. O-O {[%emt 0:00:30]} Be7 {[%emt 0:00:00]} 5. d4 {[%emt 0:00:00]} O-O {[%emt 0:00:00]} 6. c4 {[%emt 0:00:00]} c6 {[%emt 0:07:30]} 7. Nc3 {[%emt 0:00:30]} Nbd7 {[%emt 0:01:30]} 8. Qb3 {[%emt 0:04:30]} dxc4 {[%emt 0:06:30]} 9. Qxc4 {[%emt 0:00:30]} Nb6 {[%emt 0:00:30]} 10. Qb3 {[%emt 0:00:30]} a5 {[%emt 0:00:00]} 11. e4 {[%emt 0:07:30]} a4 {[%emt 0:01:00]} 12. Qc2 {[%emt 0:00:30]} a3 {[%emt 0:03:30]} 13. b3 {[%emt 0:03:30]} Bb4 {[%emt 0:05:30]} 14. Bd2 {[%emt 0:10:30]} Nbd7 {[%emt 0:06:30]} 15. Rfd1 {[%emt 0:07:30]} Qa5 {[%emt 0:08:30]} 16. Ne2 {[%emt 0:11:30]} Bxd2 {[%emt 0:15:30]} 17. Rxd2 {[%emt 0:02:30]} e5 {[%emt 0:02:30]} 18. Rc1 {[%emt 0:07:30]} Re8 {[%emt 0:05:30]} 19. Nc3 {[%emt 0:07:30]} exd4 {[%emt 0:04:30]} 20. Rxd4 {[%emt 0:00:30]} Ne5 {[%emt 0:01:30]} 21. Ra4 {[%emt 0:00:30]} Bh3 {[%emt 0:21:42]} 22. Rxa5 {[%emt 0:01:30]} Nxf3+ {[%emt 0:00:07]} 23. Bxf3 {[%emt 0:00:30]} Rxa5 {[%emt 0:00:04]} 24. Rd1 {[%emt 0:07:30]} Rc5 {[%emt 0:00:31]} 25. Qd2 {[%emt 0:01:30]} Rce5 {[%emt 0:00:51]} 26. Re1 {[%emt 0:04:30]} b5 {[%emt 0:00:38]} 27. Qd6 {[%emt 0:02:40]} Nxe4 {[%emt 0:01:19]} 28. Rxe4 {[%emt 0:04:29]} Rxe4 {[%emt 0:00:17]} 29. Nxe4 {[%emt 0:01:38]} f5 {[%emt 0:00:12]} 30. Qxc6 {[%emt 0:03:03]} Kf8 {[%emt 0:00:53]} 31. Qd6+ {[%emt 0:05:02]} Kg8 {[%emt 0:00:08]} 32. Qd7 {[%emt 0:00:43]} Kf8 {[%emt 0:00:43]} 33. Qxe8+ {[%emt 0:01:22]} Kxe8 {[%emt 0:00:30]} 34. Nd6+ {[%emt 0:00:04]} Kd7 {[%emt 0:01:19]} 35. Nxb5 {[%emt 0:00:01]} f4 {[%emt 0:00:00]} 36. g4 {[%emt 0:01:20]} h5 {[%emt 0:00:35]} 37. gxh5 {[%emt 0:00:07]} Bf5 {[%emt 0:00:29]} 38. Bc6+ {[%emt 0:01:41]} Ke7 {[%emt 0:04:08]} 39. Nxa3 {[%emt 0:00:52]} Bd3 {[%emt 0:00:06]} 40. Nc4 {[%emt 0:01:27]} Bb1 {[%emt 0:00:09]} 41. a4 {[%emt 0:00:29]} Ba2 {[%emt 0:00:18]} 42. Nd2 {[%emt 0:00:17]} Kd6 {[%emt 0:00:04]} 43. Be4 {[%emt 0:01:06]} Kc5 {[%emt 0:00:15]} 44. Kf1 {[%emt 0:01:29]} Kb4 {[%emt 0:00:06]} 45. Ke1 {[%emt 0:00:07]} Kc3 {[%emt 0:00:30]} 46. a5 {[%emt 0:00:12]} 1-0

[Event "Turkish Second League 2019"]
[Site "Konya"]
[Date "2019.07.25"]
[Round "5"]
[White "Mustu, Hatice Asli"]
[Black "Catal, Uktenur"]
[Result "1-0"]
[ECO "D02"]
[WhiteElo "1679"]
[BlackElo "1885"]
[Annotator "NA"]
[PlyCount "135"]
[EventDate "2019.07.22"]
[EventType "team-tourn"]
[EventCountry "TUR"]
[SourceTitle "playchess.com"]
[Source "ChessBase"]
[SourceQuality "1"]
[TimeControl "5400+30"]

1. d4 {[%emt 0:00:30]} Nf6 {[%emt 0:00:30]} 2. Bf4 {[%emt 0:00:30]} e6 {[%emt 0:00:00]} 3. Nf3 {[%emt 0:00:30]} d5 {[%emt 0:00:00]} 4. e3 {[%emt 0:00:30]} c5 {[%emt 0:00:30]} 5. c3 {[%emt 0:00:30]} Nc6 {[%emt 0:00:00]} 6. Nbd2 {[%emt 0:00:30]} Bd6 {[%emt 0:00:00]} 7. Bg3 {[%emt 0:05:30]} O-O {[%emt 0:00:00]} 8. Bd3 {[%emt 0:00:30]} b6 {[%emt 0:01:00]} 9. Qe2 {[%emt 0:00:30]} Bb7 {[%emt 0:16:30]} 10. Rd1 {[%emt 0:00:30]} c4 {[%emt 0:03:30]} 11. Bc2 {[%emt 0:01:30]} b5 {[%emt 0:00:30]} 12. e4 {[%emt 0:09:30]} Be7 {[%emt 0:07:30]} 13. e5 {[%emt 0:17:30]} Nd7 {[%emt 0:00:30]} 14. h4 {[%emt 0:02:30]} Re8 {[%emt 0:40:30]} 15. Ng5 {[%emt 0:18:30]} g6 {[%emt 0:19:14]} 16. f4 {[%emt 0:06:30]} Nf8 {[%emt 0:00:54]} 17. Bf2 {[%emt 0:02:30]} f6 {[%emt 0:00:54]} 18. Ngf3 {[%emt 0:02:30]} f5 {[%emt 0:00:37]} 19. h5 {[%emt 0:04:30]} Kg7 {[%emt 0:01:22]} 20. Nh4 {[%emt 0:03:30]} b4 {[%emt 0:03:22]} 21. Bb1 {[%emt 0:01:30]} bxc3 {[%emt 0:00:34]} 22. bxc3 {[%emt 0:00:00]} g5 {[%emt 0:00:16]} 23. fxg5 {[%emt 0:01:00]} Bxg5 {[%emt 0:00:12]} 24. Nhf3 {[%emt 0:03:40]} h6 {[%emt 0:00:20]} 25. Bh4 {[%emt 0:02:02]} Nh7 {[%emt 0:00:15]} 26. Rh3 {[%emt 0:01:04]} Kh8 {[%emt 0:00:41]} 27. Nxg5 {[%emt 0:02:59]} hxg5 {[%emt 0:00:12]} 28. Bf2 {[%emt 0:00:36]} g4 {[%emt 0:00:20]} 29. Rh2 {[%emt 0:00:42]} Qa5 {[%emt 0:01:14]} 30. Qe3 {[%emt 0:01:41]} Ne7 {[%emt 0:00:27]} 31. Bg3 {[%emt 0:01:07]} Bc6 {[%emt 0:00:45]} 32. Rc1 {[%emt 0:00:16]} Qa3 {[%emt 0:00:29]} 33. Nf1 {[%emt 0:01:43]} Rab8 {[%emt 0:00:12]} 34. Bf4 {[%emt 0:00:33]} Ng8 {[%emt 0:00:52]} 35. g3 {[%emt 0:00:15]} Rb2 {[%emt 0:00:34]} 36. Rxb2 {[%emt 0:01:26]} Qxb2 {[%emt 0:00:03]} 37. h6 {[%emt 0:00:47]} Qa3 {[%emt 0:01:10]} 38. Qf2 {[%emt 0:00:55]} Rb8 {[%emt 0:00:24]} 39. Qh2 {[%emt 0:00:40]} Be8 {[%emt 0:00:20]} 40. Qh4 {[%emt 0:00:30]} Qe7 {[%emt 0:00:13]} 41. Qh2 {[%emt 0:00:32]} Ng5 {[%emt 0:00:28]} 42. Nd2 {[%emt 0:02:29]} Nh3 {[%emt 0:01:19]} 43. Be3 {[%emt 0:01:50]} Qa3 {[%emt 0:00:14]} 44. Nf1 {[%emt 0:00:48]} Rb2 {[%emt 0:01:17]} 45. Bd2 {[%emt 0:00:04]} Rb7 {[%emt 0:00:10]} 46. Ne3 {[%emt 0:01:16]} Ng5 {[%emt 0:00:24]} 47. Qe2 {[%emt 0:01:41]} Nf3+ {[%emt 0:00:06]} 48. Kf2 {[%emt 0:00:00]} Nxd2 {[%emt 0:02:28]} 49. Qxd2 {[%emt 0:00:08]} Rb2 {[%emt 0:00:00]} 50. Nc2 {[%emt 0:00:19]} Qf8 {[%emt 0:01:02]} 51. Rh1 {[%emt 0:00:34]} Kh7 {[%emt 0:00:11]} 52. Qc1 {[%emt 0:00:00]} Rb7 {[%emt 0:00:26]} 53. Qf4 {[%emt 0:00:33]} Bg6 {[%emt 0:00:21]} 54. Ke2 {[%emt 0:01:12]} Qb8 {[%emt 0:00:17]} 55. Qc1 {[%emt 0:00:18]} Rb2 {[%emt 0:00:14]} 56. Kd2 {[%emt 0:00:08]} Rb6 {[%emt 0:01:05]} 57. Ne3 {[%emt 0:01:03]} Ne7 {[%emt 0:00:28]} 58. Qa3 {[%emt 0:00:50]} Ng8 {[%emt 0:00:33]} 59. Bc2 {[%emt 0:00:44]} Rb7 {[%emt 0:00:46]} 60. Qa6 {[%emt 0:00:22]} Rb6 {[%emt 0:00:32]} 61. Qa3 {[%emt 0:00:01]} Qb7 {[%emt 0:00:05]} 62. Nxg4 {[%emt 0:00:35]} Rb2 {[%emt 0:00:53]} 63. Ne3 {[%emt 0:00:28]} Rb6 {[%emt 0:00:38]} 64. g4 {[%emt 0:00:43]} Qf7 {[%emt 0:00:23]} 65. gxf5 {[%emt 0:00:50]} exf5 {[%emt 0:00:05]} 66. Nxf5 {[%emt 0:00:36]} Bxf5 {[%emt 0:00:30]} 67. Bxf5+ {[%emt 0:00:00]} Qxf5 {[%emt 0:00:13]} 68. Qxa7+ {[%emt 0:00:00]} 1-0

[Event "Turkish Second League 2019"]
[Site "Konya"]
[Date "2019.07.25"]
[Round "5"]
[White "Yildirim, Okan"]
[Black "Bicer, Atakan Mert"]
[Result "0-1"]
[ECO "B49"]
[WhiteElo "1657"]
[BlackElo "1870"]
[Annotator "NA"]
[PlyCount "88"]
[EventDate "2019.07.22"]
[EventType "team-tourn"]
[EventCountry "TUR"]
[SourceTitle "playchess.com"]
[Source "ChessBase"]
[SourceQuality "1"]
[TimeControl "5400+30"]

1. e4 {[%emt 0:00:30]} c5 {[%emt 0:00:30]} 2. Nf3 {[%emt 0:00:30]} e6 {[%emt 0:00:00]} 3. d4 {[%emt 0:00:30]} cxd4 {[%emt 0:00:00]} 4. Nxd4 {[%emt 0:00:00]} Nc6 {[%emt 0:00:30]} 5. Nc3 {[%emt 0:00:00]} Qc7 {[%emt 0:00:00]} 6. Be3 {[%emt 0:04:30]} a6 {[%emt 0:00:00]} 7. Be2 {[%emt 0:00:30]} Nf6 {[%emt 0:00:00]} 8. O-O {[%emt 0:00:30]} Be7 {[%emt 0:00:00]} 9. a4 {[%emt 0:02:30]} O-O {[%emt 0:00:30]} 10. Nxc6 {[%emt 0:00:30]} bxc6 {[%emt 0:00:30]} 11. a5 {[%emt 0:02:30]} c5 {[%emt 0:03:30]} 12. f3 {[%emt 0:02:30]} Bb7 {[%emt 0:00:30]} 13. Bf2 {[%emt 0:08:30]} Bd6 {[%emt 0:01:30]} 14. g3 {[%emt 0:01:30]} Rad8 {[%emt 0:05:30]} 15. Na4 {[%emt 0:03:30]} Be7 {[%emt 0:00:30]} 16. c4 {[%emt 0:02:30]} d5 {[%emt 0:06:30]} 17. cxd5 {[%emt 0:00:30]} exd5 {[%emt 0:00:00]} 18. exd5 {[%emt 0:00:30]} Rfe8 {[%emt 0:01:00]} 19. Bc4 {[%emt 0:05:30]} Nxd5 {[%emt 0:00:30]} 20. Qb3 {[%emt 0:00:30]} Bf8 {[%emt 0:01:30]} 21. Nb6 {[%emt 0:02:30]} Nb4 {[%emt 0:01:30]} 22. Rad1 {[%emt 0:03:30]} Bc6 {[%emt 0:04:30]} 23. Rxd8 {[%emt 0:03:30]} Rxd8 {[%emt 0:00:30]} 24. Be1 {[%emt 0:00:00]} Qb7 {[%emt 0:04:30]} 25. Rf2 {[%emt 0:16:00]} h5 {[%emt 0:20:30]} 26. Kg2 {[%emt 0:22:31]} h4 {[%emt 0:03:30]} 27. Rd2 {[%emt 0:02:26]} Re8 {[%emt 0:07:30]} 28. Re2 {[%emt 0:01:46]} Rxe2+ {[%emt 0:01:30]} 29. Bxe2 {[%emt 0:00:30]} Qe7 {[%emt 0:00:00]} 30. Kf2 {[%emt 0:01:02]} Qe5 {[%emt 0:01:00]} 31. Bc3 {[%emt 0:00:54]} hxg3+ {[%emt 0:00:30]} 32. hxg3 {[%emt 0:00:05]} Qh5 {[%emt 0:00:30]} 33. Kg2 {[%emt 0:01:31]} Bd6 {[%emt 0:01:30]} 34. Nc8 {[%emt 0:04:17]} Bf8 {[%emt 0:00:30]} 35. Nb6 {[%emt 0:00:14]} Bd6 {[%emt 0:02:30]} 36. Nc8 {[%emt 0:00:08]} Bf8 {[%emt 0:01:30]} 37. Nb6 {[%emt 0:00:04]} Nd3 {[%emt 0:01:30]} 38. Bd2 {[%emt 0:01:33]} Ne5 {[%emt 0:01:30]} 39. Qe3 {[%emt 0:03:13]} Ng4 {[%emt 0:00:30]} 40. Qg1 {[%emt 0:00:06]} Qe5 {[%emt 0:01:30]} 41. Bxa6 {[%emt 0:01:13]} Bd6 {[%emt 0:01:30]} 42. Qe1 {[%emt 0:00:43]} Qh5 {[%emt 0:00:30]} 43. Qg1 {[%emt 0:01:59]} Ne5 {[%emt 0:00:30]} 44. Be2 {[%emt 0:00:33]} Nxf3 {[%emt 0:01:30]} 0-1

[Event "Turkish Second League 2019"]
[Site "Konya"]
[Date "2019.07.25"]
[Round "5"]
[White "Guclu, Yagmur"]
[Black "Ibrahimova, Sabina"]
[Result "0-1"]
[ECO "B12"]
[WhiteElo "1516"]
[BlackElo "2190"]
[Annotator "ChessBase"]
[PlyCount "86"]
[EventDate "2019.07.22"]
[EventType "team-tourn"]
[EventCountry "TUR"]
[SourceTitle "playchess.com"]
[Source "ChessBase"]
[SourceQuality "1"]
[TimeControl "5400+30"]

1. e4 {[%emt 0:00:30]} c6 {[%emt 0:00:30]} 2. d4 {[%emt 0:00:00]} d5 {[%emt 0:00:00]} 3. e5 {[%emt 0:00:00]} c5 {[%emt 0:00:00]} 4. c3 {[%emt 0:02:30]} Nc6 {[%emt 0:00:30]} 5. Nf3 {[%emt 0:00:30]} Bg4 {[%emt 0:00:30]} 6. Bb5 {[%emt 0:13:30]} Qb6 {[%emt 0:01:30]} 7. Bxc6+ {[%emt 0:05:30]} Qxc6 {[%emt 0:01:30]} 8. O-O {[%emt 0:03:30]} e6 {[%emt 0:02:30]} 9. Nbd2 {[%emt 0:10:30]} cxd4 {[%emt 0:00:30]} 10. Nxd4 {[%emt 0:13:30]} Bxd1 {[%emt 0:01:30]} 11. Nxc6 {[%emt 0:00:30]} Ba4 {[%emt 0:05:30]} 12. Nd4 {[%emt 0:00:30]} Bc5 {[%emt 0:03:30]} 13. N2f3 {[%emt 0:02:30]} Rc8 {[%emt 0:07:30]} 14. Be3 {[%emt 0:04:30]} Ne7 {[%emt 0:01:30]} 15. Rfe1 {[%emt 0:02:30]} O-O {[%emt 0:01:30]} 16. Rac1 {[%emt 0:02:30]} Rc7 {[%emt 0:05:30]} 17. h3 {[%emt 0:09:30]} Rfc8 {[%emt 0:03:30]} 18. Re2 {[%emt 0:05:30]} Bd7 {[%emt 0:04:30]} 19. Rce1 {[%emt 0:03:40]} Ng6 {[%emt 0:11:30]} 20. Nb3 {[%emt 0:05:48]} b6 {[%emt 0:15:30]} 21. Rc1 {[%emt 0:04:59]} Bf8 {[%emt 0:02:30]} 22. Nbd4 {[%emt 0:03:03]} b5 {[%emt 0:05:30]} 23. a3 {[%emt 0:03:04]} a5 {[%emt 0:03:30]} 24. Rce1 {[%emt 0:01:12]} Ra8 {[%emt 0:02:47]} 25. Ra1 {[%emt 0:00:54]} f6 {[%emt 0:05:02]} 26. Bd2 {[%emt 0:01:28]} fxe5 {[%emt 0:00:31]} 27. Nxe5 {[%emt 0:00:35]} Nxe5 {[%emt 0:00:30]} 28. Rxe5 {[%emt 0:00:30]} Bd6 {[%emt 0:00:00]} 29. Re2 {[%emt 0:00:00]} e5 {[%emt 0:01:44]} 30. Nf3 {[%emt 0:00:24]} e4 {[%emt 0:00:29]} 31. Nd4 {[%emt 0:00:15]} Rac8 {[%emt 0:03:12]} 32. Rd1 {[%emt 0:01:17]} b4 {[%emt 0:03:21]} 33. axb4 {[%emt 0:00:24]} axb4 {[%emt 0:00:10]} 34. cxb4 {[%emt 0:00:50]} Rc4 {[%emt 0:00:17]} 35. Bc3 {[%emt 0:00:27]} Be5 {[%emt 0:03:46]} 36. Red2 {[%emt 0:00:33]} Bf4 {[%emt 0:03:17]} 37. Re2 {[%emt 0:00:22]} Bd6 {[%emt 0:00:20]} 38. b5 {[%emt 0:00:38]} Rb8 {[%emt 0:00:54]} 39. Red2 {[%emt 0:00:28]} Bf4 {[%emt 0:01:27]} 40. Re2 {[%emt 0:00:28]} Bxb5 {[%emt 0:00:47]} 41. Nxb5 {[%emt 0:00:30]} Rxb5 {[%emt 0:00:00]} 42. Bd4 {[%emt 0:00:35]} Bd6 {[%emt 0:01:01]} 43. Rdd2 {[%emt 0:01:02]} Rc1+ {[%emt 0:00:04]} 0-1

[Event "Turkish Second League 2019"]
[Site "Konya"]
[Date "2019.07.25"]
[Round "5"]
[White "Konal, Emine Nursel"]
[Black "Ozaltun, Ecem"]
[Result "0-1"]
[ECO "B21"]
[WhiteElo "1306"]
[BlackElo "1551"]
[Annotator "NA"]
[PlyCount "104"]
[EventDate "2019.07.22"]
[EventType "team-tourn"]
[EventCountry "TUR"]
[SourceTitle "playchess.com"]
[Source "ChessBase"]
[SourceQuality "1"]
[TimeControl "5400+30"]

1. e4 {[%emt 0:00:30]} c5 {[%emt 0:00:30]} 2. d4 {[%emt 0:00:00]} cxd4 {[%emt 0:00:30]} 3. c3 {[%emt 0:00:00]} dxc3 {[%emt 0:04:30]} 4. Nxc3 {[%emt 0:00:30]} Nc6 {[%emt 0:06:30]} 5. Nf3 {[%emt 0:00:30]} d6 {[%emt 0:05:30]} 6. Bc4 {[%emt 0:00:30]} e6 {[%emt 0:02:30]} 7. O-O {[%emt 0:00:30]} Be7 {[%emt 0:02:30]} 8. Qe2 {[%emt 0:00:30]} Nf6 {[%emt 0:03:30]} 9. Rd1 {[%emt 0:01:30]} Nd7 {[%emt 0:06:30]} 10. Bf4 {[%emt 0:07:30]} e5 {[%emt 0:03:30]} 11. Be3 {[%emt 0:01:30]} O-O {[%emt 0:09:30]} 12. Rac1 {[%emt 0:02:30]} Nf6 {[%emt 0:03:30]} 13. Bg5 {[%emt 0:05:30]} Bg4 {[%emt 0:02:30]} 14. Nb5 {[%emt 0:04:30]} a6 {[%emt 0:10:30]} 15. Bxf6 {[%emt 0:02:30]} Bxf6 {[%emt 0:03:30]} 16. Nxd6 {[%emt 0:08:30]} Nd4 {[%emt 0:07:30]} 17. Rxd4 {[%emt 0:00:30]} exd4 {[%emt 0:00:30]} 18. e5 {[%emt 0:01:30]} Be7 {[%emt 0:02:30]} 19. Nxb7 {[%emt 0:06:30]} Qb6 {[%emt 0:00:30]} 20. Qe4 {[%emt 0:04:30]} Bxf3 {[%emt 0:03:30]} 21. Qxf3 {[%emt 0:00:00]} Qxb2 {[%emt 0:01:19]} 22. Rd1 {[%emt 0:01:00]} Qc3 {[%emt 0:02:28]} 23. Bd3 {[%emt 0:00:30]} Ra7 {[%emt 0:02:40]} 24. Qe4 {[%emt 0:02:30]} g6 {[%emt 0:01:53]} 25. h4 {[%emt 0:02:30]} Qc7 {[%emt 0:01:13]} 26. Nd6 {[%emt 0:11:30]} Bxd6 {[%emt 0:00:29]} 27. exd6 {[%emt 0:00:30]} Qxd6 {[%emt 0:00:07]} 28. h5 {[%emt 0:01:30]} Re7 {[%emt 0:01:36]} 29. Qg4 {[%emt 0:13:30]} Rfe8 {[%emt 0:02:18]} 30. hxg6 {[%emt 0:03:16]} hxg6 {[%emt 0:01:16]} 31. Rd2 {[%emt 0:01:41]} Re1+ {[%emt 0:02:45]} 32. Bf1 {[%emt 0:00:21]} Rd8 {[%emt 0:00:00]} 33. f4 {[%emt 0:03:27]} Qb4 {[%emt 0:00:47]} 34. Rd3 {[%emt 0:02:18]} Qb1 {[%emt 0:01:49]} 35. Rf3 {[%emt 0:01:08]} d3 {[%emt 0:03:06]} 36. Qg5 {[%emt 0:01:42]} Qb6+ {[%emt 0:00:18]} 37. Kh2 {[%emt 0:01:07]} Qd4 {[%emt 0:03:05]} 38. Rxd3 {[%emt 0:00:47]} Qxd3 {[%emt 0:00:57]} 39. Bxd3 {[%emt 0:00:08]} Rxd3 {[%emt 0:00:03]} 40. Qa5 {[%emt 0:02:42]} Re6 {[%emt 0:00:22]} 41. f5 {[%emt 0:01:40]} Red6 {[%emt 0:00:30]} 42. fxg6 {[%emt 0:00:38]} Rxg6 {[%emt 0:00:11]} 43. a4 {[%emt 0:01:23]} Rdd6 {[%emt 0:00:18]} 44. Qe5 {[%emt 0:00:55]} Rde6 {[%emt 0:00:26]} 45. Qb8+ {[%emt 0:00:38]} Kg7 {[%emt 0:00:12]} 46. a5 {[%emt 0:00:00]} Re2 {[%emt 0:00:37]} 47. Qb7 {[%emt 0:02:13]} Rexg2+ {[%emt 0:00:37]} 48. Qxg2 {[%emt 0:00:57]} Rxg2+ {[%emt 0:00:30]} 49. Kxg2 {[%emt 0:00:00]} Kf6 {[%emt 0:00:00]} 50. Kf3 {[%emt 0:00:00]} Ke5 {[%emt 0:00:03]} 51. Ke3 {[%emt 0:00:07]} Kd5 {[%emt 0:00:13]} 52. Kd3 {[%emt 0:01:38]} Ke5 {[%emt 0:00:30]} 0-1

[Event "Turkish Second League 2019"]
[Site "Konya"]
[Date "2019.07.25"]
[Round "5"]
[White "Ozturk, Ecem"]
[Black "Acar, Ilayda"]
[Result "1/2-1/2"]
[ECO "B28"]
[WhiteElo "1268"]
[BlackElo "1346"]
[Annotator "NA"]
[PlyCount "105"]
[EventDate "2019.07.22"]
[EventType "team-tourn"]
[EventCountry "TUR"]
[SourceTitle "playchess.com"]
[Source "ChessBase"]
[SourceQuality "1"]
[TimeControl "5400+30"]

1. e4 {[%emt 0:00:30]} c5 {[%emt 0:00:30]} 2. Nf3 {[%emt 0:00:30]} a6 {[%emt 0:00:00]} 3. c3 {[%emt 0:02:30]} d5 {[%emt 0:00:00]} 4. exd5 {[%emt 0:01:30]} Qxd5 {[%emt 0:00:30]} 5. d4 {[%emt 0:02:30]} Nf6 {[%emt 0:00:30]} 6. Be2 {[%emt 0:02:30]} g6 {[%emt 0:03:30]} 7. O-O {[%emt 0:01:30]} Bg7 {[%emt 0:00:30]} 8. h3 {[%emt 0:02:30]} O-O {[%emt 0:01:30]} 9. Be3 {[%emt 0:03:30]} cxd4 {[%emt 0:04:30]} 10. Bxd4 {[%emt 0:02:30]} Nc6 {[%emt 0:01:30]} 11. Be3 {[%emt 0:00:30]} Rd8 {[%emt 0:02:30]} 12. Nd4 {[%emt 0:07:30]} Nxd4 {[%emt 0:04:30]} 13. Qxd4 {[%emt 0:03:30]} Qxd4 {[%emt 0:01:30]} 14. Bxd4 {[%emt 0:00:00]} Bf5 {[%emt 0:00:30]} 15. Bf3 {[%emt 0:02:00]} Nd5 {[%emt 0:04:30]} 16. Bxg7 {[%emt 0:03:30]} Kxg7 {[%emt 0:00:30]} 17. Rd1 {[%emt 0:02:30]} Nf6 {[%emt 0:00:30]} 18. Na3 {[%emt 0:01:30]} Rxd1+ {[%emt 0:08:30]} 19. Rxd1 {[%emt 0:00:30]} Rb8 {[%emt 0:00:30]} 20. Nc4 {[%emt 0:02:30]} Be6 {[%emt 0:01:30]} 21. Rd4 {[%emt 0:02:30]} b5 {[%emt 0:03:30]} 22. Ne5 {[%emt 0:03:30]} Bxa2 {[%emt 0:01:30]} 23. Nc6 {[%emt 0:00:30]} Re8 {[%emt 0:00:30]} 24. Nb4 {[%emt 0:00:30]} e5 {[%emt 0:00:00]} 25. Rd2 {[%emt 0:01:30]} Bc4 {[%emt 0:01:00]} 26. Nxa6 {[%emt 0:00:30]} e4 {[%emt 0:00:30]} 27. Be2 {[%emt 0:00:30]} Bxe2 {[%emt 0:00:30]} 28. Rxe2 {[%emt 0:00:30]} Nd5 {[%emt 0:01:30]} 29. Nc5 {[%emt 0:01:30]} e3 {[%emt 0:01:30]} 30. fxe3 {[%emt 0:01:30]} Nxe3 {[%emt 0:02:30]} 31. Nb3 {[%emt 0:01:30]} Re5 {[%emt 0:04:30]} 32. Nd4 {[%emt 0:01:30]} h5 {[%emt 0:02:30]} 33. Nc2 {[%emt 0:05:30]} Nc4 {[%emt 0:01:30]} 34. Rxe5 {[%emt 0:00:30]} Nxe5 {[%emt 0:00:00]} 35. Nd4 {[%emt 0:00:30]} b4 {[%emt 0:02:00]} 36. cxb4 {[%emt 0:01:30]} Nc4 {[%emt 0:00:30]} 37. b5 {[%emt 0:00:30]} Nb6 {[%emt 0:00:00]} 38. Kf2 {[%emt 0:00:30]} Kf6 {[%emt 0:00:00]} 39. Ke3 {[%emt 0:00:30]} Ke5 {[%emt 0:00:30]} 40. Kd3 {[%emt 0:01:30]} Kd5 {[%emt 0:00:30]} 41. Nc6 {[%emt 0:04:30]} Kc5 {[%emt 0:01:30]} 42. Ne5 {[%emt 0:00:30]} Nd5 {[%emt 0:01:30]} 43. Ke4 {[%emt 0:01:30]} f5+ {[%emt 0:01:30]} 44. Kf3 {[%emt 0:02:30]} g5 {[%emt 0:00:30]} 45. Nf7 {[%emt 0:00:30]} g4+ {[%emt 0:00:30]} 46. hxg4 {[%emt 0:00:30]} hxg4+ {[%emt 0:00:00]} 47. Kg3 {[%emt 0:00:30]} Ne3 {[%emt 0:01:00]} 48. Ne5 {[%emt 0:01:30]} Kxb5 {[%emt 0:01:30]} 49. Kf4 {[%emt 0:00:30]} Nxg2+ {[%emt 0:00:30]} 50. Kxf5 {[%emt 0:00:00]} Ne3+ {[%emt 0:00:30]} 51. Kf4 {[%emt 0:00:00]} Nc4 {[%emt 0:00:30]} 52. Nxc4 {[%emt 0:00:30]} Kxc4 {[%emt 0:00:00]} 53. Ke4 {[%emt 0:00:30]} 1/2-1/2